bitfinex/quotes_SOLUSD_20230120
["timestamp","ask_amount","ask_price","bid_price","bid_amount"]
[1674182419963,1.92,21.47,21.454,20.0]
[1674182420684,1.92,21.47,21.455,17.0]
[1674182420891,1.92,21.47,21.454,17.0]
[1674182421745,1.92,21.47,21.453,38.89798943]
[1674182421934,18.92,21.47,21.454,20.0]
[1674182422146,10.0,21.469,21.454,20.0]
[1674182422471,10.0,21.467,21.453,38.89798943]
[1674182422687,1.92,21.466,21.453,38.89798943]
[1674182423419,10.0,21.473,21.454,17.0]
[1674182423636,113.2523,21.472,21.456,10.0]
[1674182423843,113.2523,21.472,21.457,17.0]
[1674182424374,113.2523,21.472,21.458,10.0]
[1674182424886,10.0,21.471,21.456,10.0]
[1674182425307,10.0,21.471,21.455,20.0]
[1674182425525,113.2523,21.472,21.455,10.0]
[1674182425731,1.92,21.471,21.456,20.0]
[1674182426175,11.92,21.471,21.456,20.0]
[1674182426702,10.0,21.469,21.453,38.89798943]
[1674182426999,10.0,21.469,21.447,32.23704319]
[1674182427000,18.92,21.468,21.447,32.23704319]
[1674182427193,18.92,21.468,21.448,38.89798943]
[1674182427405,10.0,21.467,21.449,10.0]
[1674182427618,18.92,21.466,21.449,10.0]
[1674182428577,18.92,21.466,21.45,20.0]
[1674182428896,1.92,21.466,21.451,27.0]
[1674182429105,1.92,21.466,21.452,20.0]
[1674182429294,1.92,21.466,21.453,17.0]
[1674182429725,1.92,21.466,21.454,30.0]
[1674182430784,1.92,21.466,21.454,20.0]
[1674182431208,1.92,21.466,21.451,27.0]
[1674182431209,1.92,21.466,21.452,20.0]
[1674182431532,1.92,21.466,21.454,10.0]
[1674182431712,1.92,21.466,21.455,20.0]
[1674182431926,10.0,21.471,21.455,20.0]
[1674182432137,123.2523,21.472,21.456,17.96]
[1674182432138,113.2523,21.472,21.456,17.96]
[1674182432367,113.2523,21.472,21.456,79.09503262]
[1674182432565,113.2523,21.472,21.458,10.0]
[1674182432764,113.2523,21.472,21.46,10.0]
[1674182432973,113.2523,21.472,21.459,42.23704319]
[1674182433403,10.0,21.471,21.446,116.5515]
[1674182433598,1.92,21.47,21.456,10.0]
[1674182433814,0.96,21.47,21.457,20.0]
[1674182434130,113.2523,21.472,21.458,10.0]
[1674182434345,113.2523,21.472,21.46,10.0]
[1674182434555,113.2523,21.472,21.461,37.0]
[1674182435611,113.2523,21.472,21.461,20.0]
[1674182435824,0.96,21.471,21.461,20.0]
[1674182436974,0.96,21.47,21.461,20.0]
[1674182438437,10.96,21.47,21.455,20.0]
[1674182438650,0.96,21.469,21.455,20.0]
[1674182438878,0.96,21.468,21.455,20.0]
[1674182439088,0.96,21.467,21.455,20.0]
[1674182439308,0.96,21.466,21.455,20.0]
[1674182439830,0.96,21.465,21.453,10.0]
[1674182440020,0.96,21.464,21.453,10.0]
[1674182440659,0.96,21.464,21.454,17.0]
[1674182442031,0.96,21.464,21.455,10.0]
[1674182442439,113.2523,21.472,21.456,22.23704319]
[1674182442652,113.2523,21.472,21.457,37.96]
[1674182443192,113.2523,21.472,21.459,10.0]
[1674182443402,113.2523,21.472,21.461,10.0]
[1674182443616,113.2523,21.472,21.462,37.0]
[1674182443836,10.0,21.471,21.462,20.0]
[1674182444141,0.96,21.47,21.462,20.0]
[1674182444360,0.96,21.469,21.46,20.0]
[1674182444672,0.96,21.469,21.458,20.0]
[1674182445511,0.96,21.469,21.459,10.0]
[1674182445729,0.96,21.469,21.46,20.0]
[1674182447931,113.2523,21.472,21.461,32.23704319]
[1674182448240,113.2523,21.472,21.462,37.0]
[1674182448432,113.2523,21.472,21.463,10.0]
[1674182448637,34.92,21.479,21.464,20.0]
[1674182448868,44.92,21.482,21.465,17.0]
[1674182449077,44.92,21.482,21.466,10.0]
[1674182449273,44.91,21.484,21.467,17.0]
[1674182449695,10.0,21.481,21.467,17.0]
[1674182450222,0.96,21.48,21.467,17.0]
[1674182450855,0.96,21.48,21.464,20.0]
[1674182451059,0.96,21.479,21.465,17.0]
[1674182451279,0.96,21.478,21.465,17.0]
[1674182451497,0.96,21.477,21.465,17.0]
[1674182451712,0.96,21.476,21.465,17.0]
[1674182452131,0.96,21.476,21.464,20.0]
[1674182452345,0.96,21.475,21.462,20.0]
[1674182452660,0.96,21.474,21.46,42.23704319]
[1674182452857,0.96,21.473,21.46,42.23704319]
[1674182453182,0.96,21.472,21.46,20.0]
[1674182453396,0.96,21.471,21.457,52.23704319]
[1674182453615,0.96,21.47,21.457,52.23704319]
[1674182454112,0.96,21.469,21.457,52.23704319]
[1674182454749,0.96,21.469,21.457,42.23704319]
[1674182454964,0.96,21.469,21.459,10.0]
[1674182455174,0.96,21.469,21.46,20.0]
[1674182456227,0.96,21.468,21.459,20.0]
[1674182456440,0.96,21.467,21.457,22.23704319]
[1674182456761,10.0,21.475,21.459,10.0]
[1674182456978,1.92,21.474,21.459,10.0]
[1674182457176,1.92,21.474,21.46,20.0]
[1674182457496,1.92,21.474,21.453,38.89798943]
[1674182457814,34.93,21.473,21.453,38.89798943]
[1674182458010,10.0,21.471,21.453,38.89798943]
[1674182458346,18.92,21.47,21.453,38.89798943]
[1674182458543,10.0,21.469,21.453,38.89798943]
[1674182458741,18.92,21.468,21.453,38.89798943]
[1674182458958,18.92,21.468,21.446,119.6435]
[1674182459168,10.0,21.466,21.448,20.0]
[1674182459377,10.0,21.464,21.448,20.0]
[1674182459599,17.96,21.463,21.448,20.0]
[1674182459810,18.92,21.463,21.448,20.0]
[1674182462446,18.92,21.463,21.448,42.23704319]
[1674182462659,1.92,21.463,21.448,42.23704319]
[1674182463060,18.92,21.463,21.448,42.23704319]
[1674182463266,10.0,21.462,21.448,42.23704319]
[1674182463474,18.92,21.461,21.448,20.0]
[1674182463684,18.92,21.461,21.445,42.23704319]
[1674182464327,18.92,21.461,21.44,118.3108]
[1674182464328,10.0,21.46,21.44,108.3108]
[1674182464545,53.87,21.459,21.44,108.3108]
[1674182464964,10.0,21.458,21.44,108.3108]
[1674182465273,10.0,21.456,21.44,108.3108]
[1674182465486,0.96,21.455,21.44,108.3108]
[1674182465681,1.92,21.455,21.44,108.3108]
[1674182466117,1.92,21.455,21.441,20.0]
[1674182467790,1.92,21.455,21.442,17.0]
[1674182468016,1.92,21.455,21.443,20.0]
[1674182468335,1.92,21.455,21.441,20.0]
[1674182468522,18.92,21.455,21.439,20.0]
[1674182468738,0.96,21.455,21.439,20.0]
[1674182468953,10.0,21.456,21.439,42.23704319]
[1674182469174,17.96,21.455,21.439,42.23704319]
[1674182469583,17.96,21.455,21.439,20.0]
[1674182469908,10.0,21.454,21.438,32.23704319]
[1674182470121,10.0,21.452,21.439,20.0]
[1674182470334,1.92,21.451,21.439,20.0]
[1674182471912,1.92,21.451,21.438,10.0]
[1674182472124,1.92,21.451,21.439,20.0]
[1674182472309,10.0,21.456,21.439,20.0]
[1674182472519,266.8827,21.461,21.439,42.23704319]
[1674182473047,266.8827,21.461,21.44,27.0]
[1674182473264,266.8827,21.461,21.441,20.0]
[1674182473692,34.95,21.459,21.441,20.0]
[1674182473905,231.9327,21.461,21.442,39.23704319]
[1674182474101,10.0,21.46,21.443,10.0]
[1674182474307,10.0,21.46,21.444,20.0]
[1674182475042,0.96,21.459,21.444,20.0]
[1674182475467,10.96,21.458,21.444,20.0]
[1674182475677,0.96,21.457,21.444,20.0]
[1674182475901,0.96,21.456,21.444,20.0]
[1674182476116,0.96,21.455,21.445,10.0]
[1674182476309,0.96,21.454,21.445,10.0]
[1674182476518,0.96,21.453,21.445,10.0]
[1674182476740,0.96,21.453,21.444,20.0]
[1674182477794,0.96,21.453,21.441,20.0]
[1674182479256,0.96,21.453,21.442,17.0]
[1674182479572,0.96,21.453,21.443,20.0]
[1674182480322,0.96,21.452,21.443,20.0]
[1674182481268,0.96,21.451,21.441,20.0]
[1674182481481,0.96,21.45,21.441,20.0]
[1674182481799,0.96,21.45,21.442,10.0]
[1674182481989,0.96,21.45,21.443,20.0]
[1674182482195,10.0,21.458,21.443,20.0]
[1674182482526,1.92,21.457,21.443,20.0]
[1674182482743,10.0,21.456,21.443,20.0]
[1674182482955,1.92,21.455,21.443,20.0]
[1674182484837,1.92,21.455,21.444,10.0]
[1674182485044,1.92,21.455,21.445,20.0]
[1674182487781,1.92,21.455,21.441,20.0]
[1674182488522,18.92,21.455,21.441,20.0]
[1674182488734,18.92,21.455,21.438,20.0]
[1674182488930,10.0,21.454,21.438,20.0]
[1674182489137,18.92,21.453,21.438,20.0]
[1674182489355,18.92,21.453,21.429,109.1632]
[1674182489674,150.3669,21.452,21.429,109.1632]
[1674182489894,27.96,21.451,21.43,10.0]
[1674182490213,0.96,21.45,21.43,10.0]
[1674182490391,0.96,21.45,21.431,22.23704319]
[1674182490602,118.261,21.45,21.432,10.0]
[1674182490833,0.96,21.449,21.432,10.0]
[1674182491148,0.96,21.448,21.432,32.23704319]
[1674182491362,0.96,21.447,21.434,10.0]
[1674182491554,0.96,21.446,21.435,17.0]
[1674182491986,0.96,21.446,21.434,10.0]
[1674182492301,0.96,21.445,21.435,20.0]
[1674182492505,0.96,21.444,21.435,20.0]
[1674182493125,117.301,21.45,21.437,10.0]
[1674182493335,1.92,21.449,21.435,20.0]
[1674182493565,18.92,21.449,21.433,20.0]
[1674182493965,10.0,21.448,21.433,19.5]
[1674182494174,1.92,21.447,21.431,20.0]
[1674182494387,10.0,21.446,21.431,20.0]
[1674182494705,1.92,21.445,21.431,20.0]
[1674182495031,18.92,21.445,21.431,20.0]
[1674182495257,10.0,21.444,21.43,20.0]
[1674182495440,18.92,21.443,21.428,20.0]
[1674182497136,18.92,21.443,21.428,22.23704319]
[1674182497338,18.92,21.443,21.429,10.0]
[1674182497549,18.92,21.443,21.43,20.0]
[1674182498305,18.92,21.443,21.424,38.89798943]
[1674182498306,18.92,21.443,21.427,22.23704319]
[1674182498492,18.92,21.443,21.402,298.88811418]
[1674182498493,10.0,21.442,21.41,23.58440075]
[1674182498701,10.0,21.44,21.423,22.23704319]
[1674182498913,0.96,21.439,21.423,22.23704319]
[1674182499127,0.96,21.438,21.423,22.23704319]
[1674182499344,0.96,21.437,21.423,16.73704319]
[1674182499551,0.96,21.436,21.423,16.73704319]
[1674182499765,0.96,21.435,21.423,16.73704319]
[1674182500287,0.96,21.434,21.423,16.73704319]
[1674182500494,0.96,21.435,21.424,17.0]
[1674182501133,0.96,21.437,21.424,17.0]
[1674182501352,0.96,21.436,21.424,17.0]
[1674182501554,0.96,21.435,21.424,17.0]
[1674182501764,0.96,21.436,21.425,30.0]
[1674182501973,0.96,21.438,21.425,52.23062496]
[1674182502188,0.96,21.437,21.425,30.0]
[1674182502396,0.96,21.436,21.425,74.46124992]
[1674182502608,0.96,21.436,21.425,46.73062496]
[1674182503756,0.96,21.436,21.425,42.23062496]
[1674182504819,0.96,21.435,21.425,20.0]
[1674182505044,0.96,21.434,21.425,20.0]
[1674182505358,0.96,21.436,21.42,20.0]
[1674182505359,5.85758186,21.436,21.42,20.0]
[1674182505867,17.0,21.435,21.42,20.0]
[1674182506082,10.0,21.434,21.42,20.0]
[1674182506278,10.0,21.434,21.412,150.43014592]
[1674182506279,10.0,21.434,21.418,21.91972702]
[1674182506488,17.0,21.433,21.419,20.0]
[1674182506824,10.0,21.434,21.419,20.0]
[1674182507032,44.99,21.438,21.419,41.91972702]
[1674182507244,10.0,21.438,21.42,10.0]
[1674182507437,10.0,21.438,21.421,20.0]
[1674182507763,10.0,21.438,21.422,10.0]
[1674182507981,10.0,21.438,21.423,20.0]
[1674182508594,10.0,21.438,21.421,20.0]
[1674182509010,1.92,21.437,21.422,10.0]
[1674182509227,1.92,21.437,21.423,20.0]
[1674182509861,10.0,21.438,21.423,20.0]
[1674182510282,10.0,21.438,21.421,20.0]
[1674182510503,10.0,21.438,21.422,10.0]
[1674182510818,10.0,21.438,21.423,20.0]
[1674182511029,0.96,21.437,21.423,20.0]
[1674182511249,0.96,21.436,21.423,20.0]
[1674182511671,0.96,21.436,21.421,20.0]
[1674182512484,0.96,21.436,21.421,41.91972702]
[1674182512485,0.96,21.435,21.421,41.91972702]
[1674182512695,232.64764553,21.477,21.422,10.0]
[1674182513014,34.98,21.445,21.423,38.91972702]
[1674182513235,111.2914,21.472,21.423,38.91972702]
[1674182513236,10.0,21.442,21.424,10.0]
[1674182513450,10.0,21.442,21.424,31.91972702]
[1674182513765,44.97,21.448,21.425,41.91972702]
[1674182514079,144.2935,21.453,21.426,38.91972702]
[1674182514295,144.2935,21.453,21.428,10.0]
[1674182514492,10.0,21.452,21.429,37.0]
[1674182514819,10.0,21.452,21.429,58.91972702]
[1674182515028,10.0,21.449,21.431,10.0]
[1674182515240,10.0,21.449,21.432,20.0]
[1674182515430,10.0,21.449,21.433,10.0]
[1674182515868,10.0,21.449,21.432,20.0]
[1674182516807,18.92,21.448,21.432,20.0]
[1674182517342,1.92,21.448,21.432,20.0]
[1674182517535,1.92,21.448,21.433,10.0]
[1674182517955,0.96,21.448,21.433,10.0]
[1674182519537,0.96,21.447,21.433,10.0]
[1674182519755,0.96,21.446,21.433,10.0]
[1674182519955,0.96,21.445,21.433,10.0]
[1674182520169,0.96,21.444,21.433,10.0]
[1674182520371,0.96,21.445,21.433,10.0]
[1674182520581,0.96,21.446,21.433,10.0]
[1674182521032,0.96,21.448,21.433,10.0]
[1674182521219,0.96,21.447,21.432,20.0]
[1674182521430,0.96,21.446,21.432,20.0]
[1674182521630,0.96,21.445,21.432,20.0]
[1674182522072,0.96,21.444,21.432,20.0]
[1674182522596,0.96,21.443,21.432,20.0]
[1674182523014,0.96,21.442,21.432,20.0]
[1674182523216,0.96,21.441,21.432,20.0]
[1674182523436,0.96,21.44,21.432,20.0]
[1674182523628,0.96,21.439,21.425,20.0]
[1674182523839,0.96,21.438,21.425,20.0]
[1674182526072,10.0,21.447,21.425,20.0]
[1674182526286,35.93,21.446,21.426,17.0]
[1674182526498,10.0,21.445,21.428,10.0]
[1674182526821,0.96,21.444,21.429,20.0]
[1674182527130,10.0,21.447,21.43,10.0]
[1674182527338,162.271,21.45,21.431,20.0]
[1674182527533,127.301,21.45,21.431,20.0]
[1674182527961,127.301,21.45,21.432,10.0]
[1674182528167,117.301,21.45,21.433,20.0]
[1674182528484,117.301,21.45,21.434,27.0]
[1674182528688,44.95,21.46,21.435,20.96]
[1674182528899,119.4373,21.459,21.436,17.0]
[1674182529115,10.0,21.458,21.437,30.0]
[1674182529326,10.0,21.458,21.438,17.0]
[1674182529549,10.0,21.458,21.439,20.0]
[1674182529766,119.4373,21.459,21.44,17.0]
[1674182529948,119.4373,21.459,21.441,20.0]
[1674182530157,119.4373,21.459,21.442,10.0]
[1674182530382,119.4373,21.459,21.443,20.0]
[1674182530586,10.0,21.458,21.443,20.0]
[1674182531232,18.92,21.457,21.44,20.0]
[1674182531450,10.0,21.456,21.44,20.0]
[1674182531633,1.92,21.455,21.44,20.0]
[1674182533002,18.92,21.455,21.44,20.0]
[1674182533208,53.88,21.455,21.418,10.0]
[1674182533420,10.0,21.454,21.418,10.0]
[1674182533657,53.88,21.453,21.429,21.91972702]
[1674182534382,10.0,21.452,21.429,21.91972702]
[1674182534596,10.0,21.45,21.43,10.0]
[1674182534815,18.92,21.449,21.43,10.0]
[1674182534994,10.0,21.448,21.43,10.0]
[1674182535204,1.92,21.447,21.429,21.91972702]
[1674182535431,10.0,21.446,21.428,43.97571259]
[1674182535644,53.9,21.445,21.428,43.97571259]
[1674182535863,10.0,21.444,21.428,43.97571259]
[1674182536174,10.0,21.442,21.428,43.97571259]
[1674182536386,1.92,21.441,21.428,43.97571259]
[1674182536592,1.92,21.441,21.422,31.91972702]
[1674182536912,1.92,21.441,21.422,65.89543961]
[1674182537120,53.9,21.441,21.418,123.6148]
[1674182537342,53.9,21.441,21.418,145.53452702]
[1674182537660,10.0,21.44,21.419,20.0]
[1674182537841,17.96,21.439,21.419,20.0]
[1674182538048,10.96,21.438,21.419,20.0]
[1674182538282,0.96,21.437,21.419,20.0]
[1674182538470,0.96,21.436,21.419,20.0]
[1674182538682,0.96,21.435,21.419,20.0]
[1674182538892,0.96,21.436,21.42,10.0]
[1674182539101,0.96,21.437,21.421,20.0]
[1674182539314,0.96,21.436,21.421,20.0]
[1674182540278,10.96,21.436,21.417,10.0]
[1674182540484,0.96,21.435,21.418,20.0]
[1674182540680,0.96,21.435,21.419,10.0]
[1674182541121,0.96,21.435,21.42,20.0]
[1674182542062,10.0,21.434,21.42,20.0]
[1674182542248,10.0,21.432,21.418,20.0]
[1674182542464,10.0,21.432,21.409,10.0]
[1674182542465,0.96,21.431,21.414,21.91972702]
[1674182542792,1.92,21.431,21.416,10.0]
[1674182543194,1.92,21.431,21.418,10.0]
[1674182543542,10.0,21.434,21.418,10.0]
[1674182543726,1.92,21.433,21.419,20.0]
[1674182546365,1.92,21.433,21.417,20.0]
[1674182546578,1.92,21.433,21.418,10.0]
[1674182546770,1.92,21.433,21.419,20.0]
[1674182546980,1.92,21.433,21.42,10.0]
[1674182547190,1.92,21.433,21.421,20.0]
[1674182547827,1.92,21.433,21.419,20.0]
[1674182548045,1.92,21.433,21.418,20.0]
[1674182548236,18.92,21.433,21.414,21.91972702]
[1674182548458,0.96,21.433,21.414,43.83945404]
[1674182548681,10.0,21.438,21.415,10.0]
[1674182549086,10.0,21.438,21.417,10.0]
[1674182549293,114.019,21.439,21.417,10.0]
[1674182549521,114.019,21.439,21.419,10.0]
[1674182549818,114.019,21.439,21.42,21.91972702]
[1674182550264,62.95,21.438,21.421,20.0]
[1674182550474,0.96,21.437,21.422,10.0]
[1674182550668,0.96,21.437,21.423,20.0]
[1674182550883,0.96,21.438,21.424,10.0]
[1674182551100,0.96,21.438,21.424,31.91972702]
[1674182551304,0.96,21.438,21.424,10.0]
[1674182551514,0.96,21.438,21.426,10.0]
[1674182551840,0.96,21.438,21.427,21.91972702]
[1674182552238,114.019,21.439,21.427,21.91972702]
[1674182552450,114.019,21.439,21.428,10.0]
[1674182552791,48.24365912,21.482,21.428,10.0]
[1674182552792,34.98,21.445,21.429,21.91972702]
[1674182553094,330.04667726,21.487,21.431,10.0]
[1674182553095,34.97,21.447,21.431,10.0]
[1674182553291,161.5283,21.449,21.432,20.0]
[1674182553501,126.5583,21.449,21.432,41.91972702]
[1674182553711,116.5583,21.449,21.433,21.91972702]
[1674182553922,109.1875,21.45,21.434,27.0]
[1674182554140,109.1875,21.45,21.435,10.0]
[1674182554354,109.1875,21.45,21.435,43.83945404]
[1674182554566,109.1875,21.45,21.434,10.0]
[1674182554774,109.1875,21.45,21.437,10.0]
[1674182555202,109.1875,21.45,21.438,21.91972702]
[1674182556384,34.96,21.455,21.438,21.91972702]
[1674182556557,34.96,21.457,21.439,36.0]
[1674182556886,34.95,21.46,21.44,21.91972702]
[1674182557068,44.95,21.46,21.442,10.0]
[1674182557283,34.95,21.46,21.442,10.0]
[1674182557493,34.93,21.471,21.443,38.91972702]
[1674182557919,34.93,21.471,21.445,10.0]
[1674182558463,34.93,21.471,21.446,21.91972702]
[1674182559940,10.0,21.46,21.446,21.91972702]
[1674182560770,1.92,21.458,21.446,21.91972702]
[1674182561098,11.92,21.458,21.446,21.91972702]
[1674182561623,1.92,21.458,21.446,21.91972702]
[1674182562148,28.92,21.458,21.417,534.36701991]
[1674182562462,10.0,21.456,21.444,21.91972702]
[1674182562671,1.92,21.455,21.444,21.91972702]
[1674182563907,34.96,21.454,21.434,10.0]
[1674182564123,28.92,21.453,21.437,21.91972702]
[1674182564439,10.0,21.451,21.434,10.0]
[1674182564651,10.0,21.449,21.435,21.91972702]
[1674182564861,0.96,21.448,21.435,21.91972702]
[1674182565085,0.96,21.447,21.435,21.91972702]
[1674182565300,0.96,21.446,21.435,21.91972702]
[1674182565511,0.96,21.445,21.435,21.91972702]
[1674182566646,0.96,21.446,21.435,21.91972702]
[1674182566647,154.1804,21.45,21.435,21.91972702]
[1674182566878,1.92,21.449,21.436,10.0]
[1674182567308,1.92,21.449,21.437,21.91972702]
[1674182568126,119.2104,21.45,21.437,21.91972702]
[1674182568329,0.96,21.449,21.436,10.0]
[1674182568570,0.96,21.449,21.437,21.91972702]
[1674182568768,119.2104,21.45,21.437,21.91972702]
[1674182569509,10.0,21.453,21.437,21.91972702]
[1674182570566,0.96,21.452,21.437,21.91972702]
[1674182570751,10.0,21.451,21.437,21.91972702]
[1674182570958,0.96,21.45,21.437,21.91972702]
[1674182571170,35.93,21.449,21.429,10.0]
[1674182571392,10.0,21.447,21.43,41.91972702]
[1674182571612,18.92,21.446,21.43,41.91972702]
[1674182571813,10.0,21.445,21.43,41.91972702]
[1674182572010,0.96,21.444,21.43,41.91972702]
[1674182572222,0.96,21.443,21.43,41.91972702]
[1674182572543,0.96,21.442,21.43,41.91972702]
[1674182573065,0.96,21.442,21.431,21.91972702]
[1674182573276,44.97,21.447,21.432,20.0]
[1674182573485,10.0,21.447,21.433,10.0]
[1674182573709,1.92,21.446,21.433,31.91972702]
[1674182573918,1.92,21.446,21.434,21.91972702]
[1674182575214,1.92,21.446,21.422,52.08548722]
[1674182575215,34.98,21.445,21.423,124.557]
[1674182575516,10.96,21.444,21.425,21.91972702]
[1674182575738,34.98,21.443,21.425,21.91972702]
[1674182576043,10.0,21.441,21.425,21.91972702]
[1674182576255,36.9,21.44,21.425,21.91972702]
[1674182576793,10.0,21.439,21.425,21.91972702]
[1674182577095,1.92,21.438,21.425,21.91972702]
[1674182577308,34.98,21.44,21.425,21.91972702]
[1674182577499,34.97,21.446,21.425,21.91972702]
[1674182577704,44.97,21.448,21.425,21.91972702]
[1674182577938,10.0,21.445,21.426,10.0]
[1674182578146,34.98,21.444,21.427,17.0]
[1674182578334,34.96,21.453,21.427,60.83945404]
[1674182578549,124.6797,21.457,21.428,1.92]
[1674182578758,124.6797,21.457,21.428,128.99612457]
[1674182578981,124.6797,21.457,21.429,48.91972702]
[1674182579195,44.96,21.456,21.43,21.92]
[1674182579404,44.96,21.456,21.431,27.0]
[1674182579725,10.0,21.454,21.433,10.0]
[1674182579936,10.0,21.454,21.435,10.0]
[1674182580251,10.0,21.454,21.436,17.0]
[1674182580443,114.6797,21.457,21.436,60.83945404]
[1674182580654,114.6797,21.457,21.437,43.83972702]
[1674182580863,114.6797,21.457,21.439,10.0]
[1674182581069,114.6797,21.457,21.438,21.91972702]
[1674182581281,114.6797,21.457,21.436,17.0]
[1674182581606,10.0,21.455,21.436,17.0]
[1674182581814,10.0,21.455,21.434,21.91972702]
[1674182582140,10.0,21.453,21.434,21.91972702]
[1674182582364,53.88,21.452,21.434,21.91972702]
[1674182582547,10.0,21.451,21.43,10.0]
[1674182582762,18.92,21.45,21.431,41.91972702]
[1674182583074,10.0,21.449,21.431,41.91972702]
[1674182583294,1.92,21.448,21.432,17.0]
[1674182583610,1.92,21.448,21.433,20.0]
[1674182584217,1.92,21.448,21.431,21.91972702]
[1674182584535,1.92,21.448,21.429,21.91972702]
[1674182584536,34.97,21.447,21.429,21.91972702]
[1674182584751,10.96,21.446,21.429,21.91972702]
[1674182584975,52.94,21.445,21.429,21.91972702]
[1674182585187,10.96,21.444,21.429,21.91972702]
[1674182585399,17.96,21.443,21.429,21.91972702]
[1674182585593,0.96,21.442,21.429,21.91972702]
[1674182585796,10.0,21.44,21.421,10.0]
[1674182586001,10.0,21.438,21.422,20.0]
[1674182586217,1.92,21.437,21.422,41.91972702]
[1674182586643,1.92,21.437,21.422,21.91972702]
[1674182587496,0.96,21.437,21.422,21.91972702]
[1674182587817,0.96,21.436,21.422,21.91972702]
[1674182588011,0.96,21.435,21.423,20.0]
[1674182588535,0.96,21.435,21.424,21.91972702]
[1674182588955,0.96,21.437,21.424,21.91972702]
[1674182589156,1.92,21.437,21.424,21.91972702]
[1674182591478,0.96,21.437,21.424,21.91972702]
[1674182591692,10.0,21.438,21.425,17.0]
[1674182592121,10.0,21.438,21.426,21.91972702]
[1674182592745,10.0,21.438,21.426,20.91972702]
[1674182593055,0.96,21.437,21.426,20.91972702]
[1674182593262,0.96,21.436,21.426,20.91972702]
[1674182593490,0.96,21.435,21.426,20.91972702]
[1674182595175,44.97,21.446,21.426,20.91972702]
[1674182595363,10.0,21.446,21.428,10.0]
[1674182595573,10.0,21.446,21.429,17.0]
[1674182595779,10.0,21.446,21.429,38.91972702]
[1674182595988,10.0,21.446,21.407,7.89638557]
[1674182596211,10.0,21.444,21.425,21.91972702]
[1674182596424,54.98,21.443,21.425,21.91972702]
[1674182596629,10.0,21.441,21.425,21.91972702]
[1674182596848,73.9,21.44,21.425,21.91972702]
[1674182597052,118.2007,21.439,21.425,21.91972702]
[1674182597270,10.0,21.437,21.425,21.91972702]
[1674182597587,1.92,21.436,21.425,21.91972702]